Department Family,Entity,Date,Expense Type,Expense area,Transaction Number,Supplier,Sum of Amount
Department of Health,Salisbury NHS Foundation Trust,10/31/2021,Anaesthetics Accessories,SLEEP SERVICE,39876393,RESMED (UK) LTD,"18,416.52"
Department of Health,Salisbury NHS Foundation Trust,10/31/2021,Bldg Ctrcts - PFI Svc Chg,FINANCING CHARGES,39951087,SALISBURY HEALTHCARE FACILITIES LTD,"342,033.43"
Department of Health,Salisbury NHS Foundation Trust,10/31/2021,Bldg Ctrcts - PFI Svc Chg,FINANCING CHARGES,40031653,SALISBURY HEALTHCARE FACILITIES LTD,"331,012.57"
Department of Health,Salisbury NHS Foundation Trust,10/31/2021,COMPUTER HARDWARE,IT ,39866544,DELL CORPORATION LTD,"70,680.00"
Department of Health,Salisbury NHS Foundation Trust,10/31/2021,Computer Maintenance,IT ,39768817,CIVICA UK LTD,"35,661.60"
Department of Health,Salisbury NHS Foundation Trust,10/31/2021,COMPUTER SOFTWARE,BEATRICE 2-6 WARDS,39930368,HEALTHNET CONNECTIONS LTD,"13,181.77"
Department of Health,Salisbury NHS Foundation Trust,10/31/2021,COMPUTER SOFTWARE,CAPITAL PROJECTS,39930368,HEALTHNET CONNECTIONS LTD,"81,477.75"
Department of Health,Salisbury NHS Foundation Trust,10/31/2021,COMPUTER SOFTWARE,IT ,39867238,DH OPCO UK LTD,"88,473.07"
Department of Health,Salisbury NHS Foundation Trust,10/31/2021,COMPUTER SOFTWARE,IT ,40014461,DH OPCO UK LTD,"44,668.25"
Department of Health,Salisbury NHS Foundation Trust,10/31/2021,Contr Other External,CAT CONT SDH KITCHEN,39920189,PELICAN PROCUREMENT SERVICES LTD,"60,349.97"
Department of Health,Salisbury NHS Foundation Trust,10/31/2021,Contr Other External,CAT CONT SDH KITCHEN,39951099,PELICAN PROCUREMENT SERVICES LTD,"58,362.67"
Department of Health,Salisbury NHS Foundation Trust,10/31/2021,Contr Other External,CAT CONT SDH KITCHEN,39951100,PELICAN PROCUREMENT SERVICES LTD,"62,240.09"
Department of Health,Salisbury NHS Foundation Trust,10/31/2021,Contr Other External,CAT CONT SDH KITCHEN,39951101,PELICAN PROCUREMENT SERVICES LTD,"57,247.97"
Department of Health,Salisbury NHS Foundation Trust,10/31/2021,CONTRACT MAINTENANCE,CORPORATE,40036700,STEPNELL LTD,"26,371.34"
Department of Health,Salisbury NHS Foundation Trust,10/31/2021,Drugs,DRUG STOCK,39739820,LLOYDS PHARMACY CLINICAL HOMECARE LTD,"25,314.96"
Department of Health,Salisbury NHS Foundation Trust,10/31/2021,Drugs,DRUG STOCK,39739900,LLOYDS PHARMACY CLINICAL HOMECARE LTD,"28,997.14"
Department of Health,Salisbury NHS Foundation Trust,10/31/2021,Drugs,DRUG STOCK,39819922,BAYER PLC,"41,060.52"
Department of Health,Salisbury NHS Foundation Trust,10/31/2021,Drugs,DRUG STOCK,39825789,LLOYDS PHARMACY CLINICAL HOMECARE LTD,"26,775.68"
Department of Health,Salisbury NHS Foundation Trust,10/31/2021,Drugs,DRUG STOCK,39825792,LLOYDS PHARMACY CLINICAL HOMECARE LTD,"36,709.53"
Department of Health,Salisbury NHS Foundation Trust,10/31/2021,Drugs,DRUG STOCK,39849636,BAYER PLC,"27,373.68"
Department of Health,Salisbury NHS Foundation Trust,10/31/2021,Drugs,DRUG STOCK,39849668,ROCHE PRODUCTS LTD,"28,454.15"
Department of Health,Salisbury NHS Foundation Trust,10/31/2021,Drugs,DRUG STOCK,39877623,CSL BEHRING UK LTD,"30,480.00"
Department of Health,Salisbury NHS Foundation Trust,10/31/2021,Drugs,DRUG STOCK,39877633,ROCHE PRODUCTS LTD,"25,307.82"
Department of Health,Salisbury NHS Foundation Trust,10/31/2021,Drugs,DRUG STOCK,39950730,LLOYDS PHARMACY LTD,"160,808.55"
Department of Health,Salisbury NHS Foundation Trust,10/31/2021,Drugs,DRUG STOCK,39950731,LLOYDS PHARMACY LTD,"400,000.00"
Department of Health,Salisbury NHS Foundation Trust,10/31/2021,Drugs,DRUG STOCK,40017829,ROCHE PRODUCTS LTD,"26,450.40"
Department of Health,Salisbury NHS Foundation Trust,10/31/2021,Drugs,DRUG STOCK,40017871,LLOYDS PHARMACY CLINICAL HOMECARE LTD,"27,616.40"
Department of Health,Salisbury NHS Foundation Trust,10/31/2021,Drugs,DRUG STOCK,40017872,LLOYDS PHARMACY CLINICAL HOMECARE LTD,"39,698.60"
Department of Health,Salisbury NHS Foundation Trust,10/31/2021,Electricity,ENERGY & WATER SDH,39698922,SCOTTISH POWER,"100,514.37"
Department of Health,Salisbury NHS Foundation Trust,10/31/2021,Hcare Srv Rec Other NHS,BOWEL SCREENING BSW,39777083,ROYAL UNITED HOSPITAL BATH NHS TRUST,"135,536.75"
Department of Health,Salisbury NHS Foundation Trust,10/31/2021,Hcare Srv Rec Other NHS,CLIN RADIOLOGY MRI SCANS,39783398,SUPPLY CHAIN COORDINATION LIMITED,"34,200.00"
Department of Health,Salisbury NHS Foundation Trust,10/31/2021,Hcare Srv Rec Other NHS,CYTOGENETICS,39783123,BIRMINGHAM WOMENS AND CHILDRENS NHS FOUNDATION TRUST,"110,163.00"
Department of Health,Salisbury NHS Foundation Trust,10/31/2021,Insourced Services from Non NHS Provider,CLIN RADIOLOGY EX SPIN/CT,39950692,COBALT HEALTH,"25,714.29"
Department of Health,Salisbury NHS Foundation Trust,10/31/2021,Laboratory Chemicals,COVID MAIN (FORMERLY FLU PANDEMIC),39707069,CEPHEID UK LTD,"31,392.00"
Department of Health,Salisbury NHS Foundation Trust,10/31/2021,Laboratory Chemicals,COVID MAIN (FORMERLY FLU PANDEMIC),39807581,CEPHEID UK LTD,"5,232.00"
Department of Health,Salisbury NHS Foundation Trust,10/31/2021,Laboratory Chemicals,COVID MAIN (FORMERLY FLU PANDEMIC),39866557,PRO-LAB DIAGNOSTICS,"81,755.64"
Department of Health,Salisbury NHS Foundation Trust,10/31/2021,Laboratory External Tests,LABORATORY MEDICINE,40014191,HAMPSHIRE HOSPITALS NHSFT,"69,614.00"
Department of Health,Salisbury NHS Foundation Trust,10/31/2021,Laboratory External Tests,PATH BECKMAN COULTER MSC,39972096,BECKMAN COULTER UK LTD,"173,761.67"
Department of Health,Salisbury NHS Foundation Trust,10/31/2021,Materials - Building,ETS SUPPORT STAFF,39863793,STEPNELL LTD,"26,003.82"
Department of Health,Salisbury NHS Foundation Trust,10/31/2021,Med & Surg Equip General,CLIN RADIOLOGY EX SPIN/CT,39606364,SUPPLY CHAIN COORDINATION LIMITED,"120,365.11"
Department of Health,Salisbury NHS Foundation Trust,10/31/2021,Med & Surg Equip General,SLEEP SERVICE,39876393,RESMED (UK) LTD,"7,080.00"
Department of Health,Salisbury NHS Foundation Trust,10/31/2021,NonNHS Trade Pybls Curr,PROCUREMENT,39862869,SUPPLY CHAIN COORDINATION LIMITED,"158,116.29"
Department of Health,Salisbury NHS Foundation Trust,10/31/2021,NonNHS Trade Pybls Curr,PROCUREMENT,39862870,SUPPLY CHAIN COORDINATION LIMITED,"155,530.58"
Department of Health,Salisbury NHS Foundation Trust,10/31/2021,NonNHS Trade Pybls Curr,PROCUREMENT,39862947,SUPPLY CHAIN COORDINATION LIMITED,"229,338.84"
Department of Health,Salisbury NHS Foundation Trust,10/31/2021,NonNHS Trade Pybls Curr,PROCUREMENT,39932488,SUPPLY CHAIN COORDINATION LIMITED,"188,913.97"
Department of Health,Salisbury NHS Foundation Trust,10/31/2021,NonNHS Trade Pybls Curr,PROCUREMENT,40014212,SUPPLY CHAIN COORDINATION LIMITED,"164,285.07"
Department of Health,Salisbury NHS Foundation Trust,10/31/2021,Recruitment Agency Fees,OD & PEOPLE,39949338,HEADS RESOURCING GROUP LTD,"24,218.75"
Department of Health,Salisbury NHS Foundation Trust,10/31/2021,Sewerage,ENERGY & WATER SDH,40014157,WATER 2 BUSINESS,"12,965.04"
Department of Health,Salisbury NHS Foundation Trust,10/31/2021,TELECOMMS,CAPITAL PROJECTS,40014136,NETCALL TECHNOLOGY LTD,"35,652.00"
Department of Health,Salisbury NHS Foundation Trust,10/31/2021,Water,ENERGY & WATER SDH,40014157,WATER 2 BUSINESS,"35,526.74"
